Body Name,Body Unit,Service Label,Service Code,Organisation Unit,Expenditure Category ,Calc Payment Date,Transaction Number,Net Payment ,Supplier Name,Supplier ID,,
North West Leicestershire District Council,31UH,Finance,EXCH,Exchequer Services,Recruitment - Agency Broker,29/02/2012,1231093,"9,946.97",Comensura Limited,A036958,"11,936.40","1,989.43"
North West Leicestershire District Council,31UH,Leisure & Culture,LCM,Leisure & Cult Mangt,Grants,29/02/2012,1231110,"5,000.00",Ibstock Community College,A027508,"5,000.00",0.00
North West Leicestershire District Council,31UH,Information Technology,ICT,ICT Services,Photocopiers and consumables,24/02/2012,1231131,"7,563.86",The Danwood Group Ltd,A001301,"9,076.63","1,512.77"
North West Leicestershire District Council,31UH,Housing Repairs,HRAHRM,HRA Housing Repairs & Maintenance,Building Services,29/02/2012,1231232,"5,614.92",J Tomlinson Ltd,A033342,"6,737.90","1,122.98"
North West Leicestershire District Council,31UH,Housing,HRAHM,HRA Housing Management,Rent payments,29/02/2012,1231296,875.00,Kings Lettings Ltd,A036479,875.00,0.00
North West Leicestershire District Council,31UH,Street Management,ENOT,Environment Transport,Water - Sewerage services,29/02/2012,1231338,"2,255.62",Severn Trent Water Limited,A001468,"2,255.62",0.00
North West Leicestershire District Council,31UH,Finance,FINPLA,Financial Planning,Leasing - Vehicles and Equipment,29/02/2012,1231372,"8,975.39",Asset Advantage Limited,A034516,"10,770.47","1,795.08"
North West Leicestershire District Council,31UH,Leisure Centres,HLC,Hermitage Leisure Centre,Lifestyle claim,07/03/2012,1231740,"1,400.64",Measham Leisure Centre,A027454,"1,680.76",280.12
North West Leicestershire District Council,31UH,Legal & Democratic,LDLS,Legal Services,Legal services - town planning,07/03/2012,1231744,"3,910.00",Marrons Consultancies Limited,A016315,"4,692.00",782.00
North West Leicestershire District Council,31UH,Housing Repairs,HRAHRM,HRA Housing Repairs & Maintenance,Housing Repairs,24/02/2012,1231115,"44,111.54",Collective Enterprises Ltd,A036453,"52,915.01","8,803.47"
North West Leicestershire District Council,31UH,Street Management,ENOT,Environment Transport,Vehicle Repairs,07/03/2012,1231914,"1,000.00",A To Z Body Repair Centre Ltd,A000003,"1,965.50",965.50
North West Leicestershire District Council,31UH,Leisure & Culture,CULTYP,Cultural Services Children & YoungPeople,Conference & training services,07/03/2012,1231916,650.00,Veronica House Project Let's Break The Cycle,A038729,650.00,0.00
North West Leicestershire District Council,31UH,Finance,EXCH,Exchequer Services,Income Tax and National Insurance Contribution,06/03/2012,1231830,"256,828.52",Inland Revenue,A027321,"256,828.52",0.00
North West Leicestershire District Council,31UH,Environment Directorate,ENVDS,Environment - Directorate Support,Roadworks - Design and Construction,07/03/2012,1231950,"21,090.00",Leicestershire County Council,A027423,"25,308.00","4,218.00"
North West Leicestershire District Council,31UH,Housing Repairs,HRAHRM,HRA Housing Repairs & Maintenance,Building - General Maintenance works - Minor framework,15/03/2012,1232033,"20,223.00",Herbert Baggaley Construction Limited,A036241,"24,267.60","4,044.60"
North West Leicestershire District Council,31UH,Information Technology,ICT,ICT Services,IT - Telephone and computing,15/03/2012,1232080,"4,299.62",Virgin Media Business,A008908,"5,159.55",859.93
North West Leicestershire District Council,31UH,Finance,FINPLA,Financial Planning,Leasing - Vehicles and Equipment,15/03/2012,1232133,"5,300.00",Asset Advantage Limited,A034516,"6,360.00","1,060.00"
North West Leicestershire District Council,31UH,Environmental Health,EES,Environmental Services,Building Services,15/03/2012,1232143,"2,356.00",John Merison BMC Ltd,A001092,"2,356.00",0.00
North West Leicestershire District Council,31UH,Neighbourhoods & Communities,NACN,N & C Neighbourhoods,Funding ,21/03/2012,1232636,"6,250.00",Leicestershire Partnership NHS Trust,A038707,"6,250.00",0.00
North West Leicestershire District Council,31UH,Leisure Centres,HPLC,Hood Park Leisure Centre,Energy - Electricity - Contract 1,21/03/2012,1232638,"1,210.13",Southern Electric,A030266,"1,452.15",242.02
North West Leicestershire District Council,31UH,Housing Repairs,HRAHRM,HRA Housing Repairs & Maintenance,Building Services,21/03/2012,1232679,"4,431.82",J Tomlinson Ltd,A033342,"5,318.18",886.36
North West Leicestershire District Council,31UH,Information Technology,ICT,ICT Services,Photocopiers and consumables,21/03/2012,1232692,813.93,Danwood Contract Rentals,A033719,976.72,162.79
North West Leicestershire District Council,31UH,Finance,EXCH,Exchequer Services,Recruitment - Agency Broker,28/03/2012,1232877,"10,397.46",Comensura Limited,A036958,"12,476.91","2,079.45"
North West Leicestershire District Council,31UH,Planning & Development,ECCTV,Environment - Town Centre/CCTV,Energy - Electricity - Contract 1,28/03/2012,1232879,"1,079.33",Southern Electric,A030266,"1,295.19",215.86
North West Leicestershire District Council,31UH,Leisure Centres,HLC,Hermitage Leisure Centre,Energy - Electricity - Contract 1,28/03/2012,1232909,"2,044.75",Southern Electric,A030266,"2,453.70",408.95
North West Leicestershire District Council,31UH,Leisure & Culture,CULTYP,Cultural Services Children & YoungPeople,Conference & training services,28/03/2012,1233204,"2,950.00",Veronica House Project Let's Break The Cycle,A038729,"2,950.00",0.00
North West Leicestershire District Council,31UH,Finance,EXCH,Exchequer Services,Policing,27/03/2012,1233191,"538,783.60",Leicestershire Police Authority,A007096,"538,783.60",0.00
North West Leicestershire District Council,31UH,Planning & Development,EDC,Environment - Development Control,Public enquiry,21/03/2012,1233294,"12,593.32",Stansgate Planning Consultants,A013765,"15,068.75","2,475.43"
North West Leicestershire District Council,31UH,Housing Repairs,HRAHRM,HRA Housing Repairs & Maintenance,Utilities,21/03/2012,1231103,"1,252.95",British Gas Business,A035745,"1,503.54",250.59
North West Leicestershire District Council,31UH,Environmental Health,EES,Environmental Services,Water - Sewerage services,29/02/2012,1231201,"1,183.18",Severn Trent Water Limited,A001468,"1,183.18",0.00
North West Leicestershire District Council,31UH,Finance,EXCH,Exchequer Services,HRA subsidy,24/02/2012,1231112,"1,037,830.00",Department for Communities & Local Government,A028518,"1,037,830.00",0.00
North West Leicestershire District Council,31UH,Finance,EXCH,Exchequer Services,Utilities,21/03/2012,1231377,"9,351.34",British Gas Business,A035745,"10,102.52",751.18
North West Leicestershire District Council,31UH,Street Management,ENOWM,Environment Waste Management,Waste Disposal - Recyclable containers,21/03/2012,1231378,"19,433.90",Straight Plc,A024906,"23,320.68","3,886.78"
North West Leicestershire District Council,31UH,Finance,EXCH,Exchequer Services,Recruitment - Agency Broker,29/02/2012,1231379,"7,813.01",Comensura Limited,A036958,"9,375.62","1,562.61"
North West Leicestershire District Council,31UH,Environment Directorate,ENVDS,Environment - Directorate Support,Local land charges,21/03/2012,1231768,"21,090.00",Leicestershire County Council,A027423,"25,308.00","4,218.00"
North West Leicestershire District Council,31UH,Finance,FINPLA,Financial Planning,Leasing - Vehicles and Equipment,07/03/2012,1231902,"1,400.00",Asset Advantage Limited,A034516,"1,680.00",280.00
North West Leicestershire District Council,31UH,Finance,FINPLA,Financial Planning,Leasing - Vehicles and Equipment,07/03/2012,1231903,"1,600.00",Asset Advantage Limited,A034516,"1,920.00",320.00
North West Leicestershire District Council,31UH,Information Technology,ICT,ICT Services,Photocopiers and consumables,07/03/2012,1231904,813.93,Danwood Contract Rentals,A033719,976.72,162.79
North West Leicestershire District Council,31UH,Finance,EXCH,Exchequer Services,HRA subsidy,24/02/2012,1231113,"180,744.00",Department for Communities & Local Government,A028518,"180,744.00",0.00
North West Leicestershire District Council,31UH,Finance,FINPLA,Financial Planning,HRA subsidy,24/02/2012,1231127,"458,204.00",Department for Communities & Local Government,A028518,"458,204.00",0.00
North West Leicestershire District Council,31UH,Environmental Health,EES,Environmental Services,Building Services,15/03/2012,1232109,"3,325.00",John Merison BMC Ltd,A001092,"3,325.00",0.00
North West Leicestershire District Council,31UH,Leisure Centres,HLC,Hermitage Leisure Centre,Water - Sewerage services,15/03/2012,1232191,"1,667.64",Severn Trent Water Limited,A001468,"1,667.64",0.00
North West Leicestershire District Council,31UH,Leisure & Culture,CULTEV,Cultural Services Arts & Events,Utilities,21/03/2012,1232563,"2,319.35",Western Power Distribution,A038499,"2,783.22",463.87
North West Leicestershire District Council,31UH,Property Services,PROPFM,Property Facilities Management,Energy - Electricity - Contract 1,21/03/2012,1232573,"3,820.55",Southern Electric,A030266,"4,584.66",764.11
North West Leicestershire District Council,31UH,Housing,HRAHM,HRA Housing Management,Grants,21/03/2012,1232689,"9,355.00",East Midlands Housing Assocn,A000530,"9,355.00",0.00
North West Leicestershire District Council,31UH,Housing,HRAHM,HRA Housing Management,Grants,21/03/2012,1232690,"1,012.00",North West Leicestershire,A013575,"1,012.00",0.00
North West Leicestershire District Council,31UH,Finance,EXCH,Exchequer Services,Electricity - Supply for contract 4,21/03/2012,1232765,"12,392.14",British Gas Business,A034733,"13,281.66",889.52
North West Leicestershire District Council,31UH,Planning & Development,EPPS,Environment-Plan Policy & Sustainability,Social Work - Home visiting scheme,21/03/2012,1232831,"4,905.00",Homestart (N.W. Leics),A000780,"4,905.00",0.00
North West Leicestershire District Council,31UH,Housing,HRACS,HRA Customer Services,parish Precepts,21/03/2012,1232832,"3,000.00",Measham Parish Council,A001082,"3,000.00",0.00
North West Leicestershire District Council,31UH,Leisure & Culture,CULTEV,Cultural Services Arts & Events,Grants,21/03/2012,1232984,"4,710.00",Performing Arts Coalville,A038940,"4,710.00",0.00
North West Leicestershire District Council,31UH,Leisure Centres,HPLC,Hood Park Leisure Centre,Water - Sewerage services,28/03/2012,1233018,800.00,Severn Trent Water Limited,A001468,800.00,0.00
North West Leicestershire District Council,31UH,Leisure & Culture,CULTYP,Cultural Services Children & YoungPeople,Grants,21/03/2012,1233220,"4,710.00",Performing Arts Coalville,A038940,"4,710.00",0.00
North West Leicestershire District Council,31UH,Finance,EXCH,Exchequer Services,Contribution payment,27/03/2012,1233193,"169,529.00","Leicester, leiecstershire & Rutland Combined Fire Authourity",A028339,"169,529.00",0.00
North West Leicestershire District Council,31UH,Finance,EXCH,Exchequer Services,Contribution payment,27/03/2012,1233194,"169,532.00","Leicester, leiecstershire & Rutland Combined Fire Authourity",A028339,"169,532.00",0.00
North West Leicestershire District Council,31UH,Corporate Director,HR,Human Resources,Criminal Records Checks,27/03/2012,1233195,792.00,Criminal Records Bureau,A027625,792.00,0.00
North West Leicestershire District Council,31UH,Leisure Centres,HPLC,Hood Park Leisure Centre,Water - Sewerage services,29/02/2012,1231190,800.00,Severn Trent Water Limited,A001468,800.00,0.00
North West Leicestershire District Council,31UH,Leisure Centres,HPLC,Hood Park Leisure Centre,Telecommunication - Line Rental,29/02/2012,1231191,580.83,Virgin Media Business,A035373,697.00,116.17
North West Leicestershire District Council,31UH,Neighbourhoods & Communities,NACN,N & C Neighbourhoods,Charity Services - Voluntary services,29/02/2012,1231192,"7,347.60",MRC Community Action,A001208,"7,347.60",0.00
North West Leicestershire District Council,31UH,Neighbourhoods & Communities,NACN,N & C Neighbourhoods,Charity Services - Voluntary services,29/02/2012,1231193,"10,203.40",MRC Community Action,A001208,"10,203.40",0.00
North West Leicestershire District Council,31UH,Finance,EXCH,Exchequer Services,Contribution payment,24/02/2012,1231120,"169,532.00","Leicester, leiecstershire & Rutland Combined Fire Authourity",A028339,"169,532.00",0.00
North West Leicestershire District Council,31UH,Information Technology,ICT,ICT Services,Photocopiers and consumables,29/02/2012,1231228,938.71,Danwood Contract Rentals,A033719,"1,126.45",187.74
North West Leicestershire District Council,31UH,Housing Repairs,HRAHRM,HRA Housing Repairs & Maintenance,Gas - Work and Registration (Replaces Corgi),29/02/2012,1231229,599.00,Capita Gas Registration & Ancillary Services Ltd,A036004,718.80,119.80
North West Leicestershire District Council,31UH,Legal & Democratic,LDLS,Legal Services,Training,29/02/2012,1231286,708.00,Weightmans LLP,A027739,848.00,140.00
North West Leicestershire District Council,31UH,Environmental Health,EES,Environmental Services,Building Services,29/02/2012,1231292,"2,570.32",John Merison BMC Ltd,A001092,"2,570.32",0.00
North West Leicestershire District Council,31UH,Environmental Health,EES,Environmental Services,Grants,29/02/2012,1231293,"1,699.00",Leicestershire County Council,A038469,"1,699.00",0.00
North West Leicestershire District Council,31UH,Environment Directorate,ENVDS,Environment - Directorate Support,Local land charges,07/03/2012,1231827,"21,090.00",Leicestershire County Council,A027423,"25,308.00","4,218.00"
North West Leicestershire District Council,31UH,Finance,EXCH,Exchequer Services,IT - software services,07/03/2012,1231855,881.24,Selima Limited,A010859,"1,057.49",176.25
North West Leicestershire District Council,31UH,Housing,HRAPBS,HRA Performance & Business Support,Rent payments,15/03/2012,1232082,"6,030.70",Leicestershire County Council,A000950,"7,236.84","1,206.14"
North West Leicestershire District Council,31UH,Housing,HRAPBS,HRA Performance & Business Support,Rent payments,15/03/2012,1232083,"6,093.65",Leicestershire County Council,A000950,"7,312.38","1,218.73"
North West Leicestershire District Council,31UH,Finance,FINPLA,Financial Planning,Leasing - Vehicles and Equipment,15/03/2012,1232162,550.00,SG Equipment Finance Limited,A030097,660.00,110.00
North West Leicestershire District Council,31UH,Finance,FINPLA,Financial Planning,Leasing - Vehicles and Equipment,15/03/2012,1232164,"3,375.00",SG Equipment Finance Limited,A030097,"4,050.00",675.00
North West Leicestershire District Council,31UH,Housing,HRAPBS,HRA Performance & Business Support,Fuel - solid,21/03/2012,1232552,"5,846.31",Coal4Energy Ltd,A031928,"7,015.57","1,169.26"
North West Leicestershire District Council,31UH,Housing,HRAPBS,HRA Performance & Business Support,Fuel - solid,21/03/2012,1232553,"1,491.80",Coal4Energy Ltd,A031928,"1,790.16",298.36
North West Leicestershire District Council,31UH,Finance,FINPLA,Financial Planning,Finance Company,24/02/2012,1231119,"95,168.81",Barclays Bank Plc,A031543,"95,168.81",0.00
North West Leicestershire District Council,31UH,Housing Repairs,HRAHRM,HRA Housing Repairs & Maintenance,Housing Repairs,06/03/2012,1231843,"53,899.04",Collective Enterprises Ltd,A036453,"64,674.13","10,775.09"
North West Leicestershire District Council,31UH,Leisure Centres,HPLC,Hood Park Leisure Centre,Water - Sewerage services,21/03/2012,1232639,502.72,Severn Trent Water Limited,A001468,502.72,0.00
North West Leicestershire District Council,31UH,Neighbourhoods & Communities,NACN,N & C Neighbourhoods,Contribution payment,21/03/2012,1232643,"1,000.00",Ashby de la Zouch Partnership,A037230,"1,000.00",0.00
North West Leicestershire District Council,31UH,Finance,EXCH,Exchequer Services,Recruitment - Agency Broker,21/03/2012,1232719,"4,677.60",Comensura Limited,A036958,"5,613.08",935.48
North West Leicestershire District Council,31UH,Environmental Health,EES,Environmental Services,Grants,28/03/2012,1233210,"4,472.00",Leicestershire County Council,A038469,"4,472.00",0.00
North West Leicestershire District Council,31UH,Environmental Health,EES,Environmental Services,Grant paymenty,28/03/2012,1233211,"3,568.00",MFW Building Services Ltd,A038916,"3,568.00",0.00
North West Leicestershire District Council,31UH,Environmental Health,EES,Environmental Services,Grants,28/03/2012,1233212,"1,370.22",Adaptions,A038668,"1,370.22",0.00
North West Leicestershire District Council,31UH,Housing Repairs,HRAHRM,HRA Housing Repairs & Maintenance,Waste - Tipping building,28/03/2012,1233043,745.76,Ward Recycling,A035471,894.91,149.15
North West Leicestershire District Council,31UH,Finance,EXCH,Exchequer Services,Telecoms - Mobile,28/03/2012,1233330,"6,272.79",Vodafone Limited,A001861,"7,499.42","1,226.63"
North West Leicestershire District Council,31UH,Planning & Development,EDC,Environment - Development Control,Public enquiry,28/03/2012,1233337,"12,593.22",Stansgate Planning Consultants,A013765,"15,068.75","2,475.53"
North West Leicestershire District Council,31UH,Finance,EXCH,Exchequer Services,HRA subsidy,27/03/2012,1233187,"1,037,829.00",Department for Communities & Local Government,A028518,"1,037,829.00",0.00
North West Leicestershire District Council,31UH,Legal & Democratic,LDELC,Electoral & Land Charges,Printing - Election Specialists - Ballot Papers and Postal Votes,29/02/2012,1231092,"1,260.00",Print Image Network Limited,A035574,"1,512.00",252.00
North West Leicestershire District Council,31UH,Environmental Health,EES,Environmental Services,Energy - Electricity - Contract 1,29/02/2012,1231195,"1,088.39",Southern Electric,A030266,"1,306.06",217.67
North West Leicestershire District Council,31UH,Housing Repairs,HRAHRM,HRA Housing Repairs & Maintenance,Building Services,07/03/2012,1231502,"3,273.98",J Tomlinson Ltd,A033342,"3,928.78",654.80
North West Leicestershire District Council,31UH,Finance,EXCH,Exchequer Services,Policing,24/02/2012,1231125,"538,783.60",Leicestershire Police Authority,A007096,"538,783.60",0.00
North West Leicestershire District Council,31UH,Housing Repairs,HRAHRM,HRA Housing Repairs & Maintenance,Fuel servicing (Hsg Maintenance),29/02/2012,1231231,711.28,Elite Sweep Service,A035675,853.54,142.26
North West Leicestershire District Council,31UH,Leisure Centres,HPLC,Hood Park Leisure Centre,Leisure - Recreational equipment supplier,29/02/2012,1231233,"1,208.00",Technogym Uk Limited,A001642,"1,449.60",241.60
North West Leicestershire District Council,31UH,Finance,EXCH,Exchequer Services,Recruitment - Agency Broker,15/03/2012,1231988,"4,185.16",Comensura Limited,A036958,"5,022.18",837.02
North West Leicestershire District Council,31UH,Property Services,PROPCL,Property Commercial Lettings,IT - Telephone and computing,15/03/2012,1232040,902.88,British Telecommunications Plc,A000233,"1,080.75",177.87
North West Leicestershire District Council,31UH,Housing,HRAPBS,HRA Performance & Business Support,Rent payments,15/03/2012,1232081,"7,556.18",Leicestershire County Council,A000950,"9,067.42","1,511.24"
North West Leicestershire District Council,31UH,Neighbourhoods & Communities,NACN,N & C Neighbourhoods,Grants,15/03/2012,1232092,"1,720.83",Age Concern Leicestershire and Rutland,A033349,"1,720.83",0.00
North West Leicestershire District Council,31UH,Finance,FINPLA,Financial Planning,Leasing - Vehicles and Equipment,15/03/2012,1232132,"30,694.91",Commercial Vehicle Finance Ltd,A033049,"36,833.89","6,138.98"
North West Leicestershire District Council,31UH,Street Management,ESS,Environment - Street Scene,Grants,15/03/2012,1232142,"6,771.00",Leicestershire County Council,A038469,"6,771.00",0.00
North West Leicestershire District Council,31UH,Finance,FINPLA,Financial Planning,Leasing - Vehicles and Equipment,15/03/2012,1232173,521.00,Asset Advantage Limited,A034516,625.20,104.20
North West Leicestershire District Council,31UH,Finance,EXCH,Exchequer Services,Debt Collection,21/03/2012,1232540,"1,109.62",Kings Armoured Security Services Ltd,A004468,"1,331.56",221.94
North West Leicestershire District Council,31UH,Housing,HRAPBS,HRA Performance & Business Support,Fuel - solid,21/03/2012,1232551,"1,587.22",Coal4Energy Ltd,A031928,"1,904.66",317.44
North West Leicestershire District Council,31UH,Finance,FINPLA,Financial Planning,Leasing - Vehicles and Equipment,07/03/2012,1231887,"11,857.52",Capital Bank Leasing Ltd,A020440,"14,229.02","2,371.50"
North West Leicestershire District Council,31UH,Street Management,ENOT,Environment Transport,Road fund licences,07/03/2012,1231899,"4,155.00",Post Office Limited,A008559,"4,155.00",0.00
North West Leicestershire District Council,31UH,Information Technology,ICT,ICT Services,Photocopiers and consumables,28/03/2012,1232903,"2,234.75",Danwood Contract Rentals,A033719,"2,681.70",446.95
North West Leicestershire District Council,31UH,Leisure Centres,HLC,Hermitage Leisure Centre,Lifestyle claim,28/03/2012,1232910,"1,333.60",Measham Leisure Centre,A027454,"1,600.32",266.72
North West Leicestershire District Council,31UH,Street Management,ENOT,Environment Transport,Road fund licences,28/03/2012,1232946,"4,805.00",Post Office Limited,A008559,"4,805.00",0.00
North West Leicestershire District Council,31UH,Housing,HRAHM,HRA Housing Management,Electricity - Supply for contract 4,07/03/2012,1231915,893.27,British Gas Business,A034733,937.93,44.66
North West Leicestershire District Council,31UH,Finance,EXCH,Exchequer Services,IT - Telephone and computing,06/03/2012,1231840,"3,767.08",British Telecommunications Plc,A000233,"4,520.49",753.41
North West Leicestershire District Council,31UH,Housing Repairs,HRAHRM,HRA Housing Repairs & Maintenance,Housing Repairs,06/03/2012,1231842,"44,111.54",Collective Enterprises Ltd,A036453,"52,915.01","8,803.47"
North West Leicestershire District Council,31UH,Neighbourhoods & Communities,NACN,N & C Neighbourhoods,Funding  ,21/03/2012,1232635,"4,142.31",Leicestershire Partnership NHS Trust,A038707,"4,142.31",0.00
North West Leicestershire District Council,31UH,Leisure Centres,HLC,Hermitage Leisure Centre,Telecommunication - Line Rental,21/03/2012,1232637,580.83,Virgin Media Business,A035373,697.00,116.17
North West Leicestershire District Council,31UH,Housing,HRATS,Housing Tenancy Sustainment,Energy Survey,21/03/2012,1232649,"2,720.00",Energico,A039091,"3,264.00",544.00
North West Leicestershire District Council,31UH,Housing Repairs,HRAHRM,HRA Housing Repairs & Maintenance,Fuel servicing (Hsg Maintenance),21/03/2012,1232678,"1,589.92",Elite Sweep Service,A035675,"1,907.90",317.98
North West Leicestershire District Council,31UH,Corporate Director,HR,Human Resources,Leasing - Vehicles,28/03/2012,1233179,"2,554.24",Arnold Clark Vehicle Management,A035549,"2,822.40",268.16
North West Leicestershire District Council,31UH,Leisure Centres,HLC,Hermitage Leisure Centre,Furniture- Swimming Pool Seating,28/03/2012,1233185,"2,278.80",Audience Systems Limited,A033909,"2,734.56",455.76
North West Leicestershire District Council,31UH,Legal & Democratic,LDLS,Legal Services,Legal services,28/03/2012,1233217,"29,000.00",No 5 Chambers Ltd,A022238,"34,800.00","5,800.00"
North West Leicestershire District Council,31UH,Leisure & Culture,CULTYP,Cultural Services Children & YoungPeople,Grant payment,28/03/2012,1233248,"1,100.00",Whitwick Community Coffee Shop,A033968,"1,100.00",0.00
North West Leicestershire District Council,31UH,Finance,EXCH,Exchequer Services,Recruitment - Agency Broker,28/03/2012,1233316,"8,188.12",Comensura Limited,A036958,"9,825.77","1,637.65"
North West Leicestershire District Council,31UH,Finance,EXCH,Exchequer Services,Rent payments,27/03/2012,1233190,"3,376,245.00",Leicestershire County Council,A000950,"3,376,245.00",0.00
North West Leicestershire District Council,31UH,Finance,EXCH,Exchequer Services,Policing,27/03/2012,1233192,"538,783.60",Leicestershire Police Authority,A007096,"538,783.60",0.00
North West Leicestershire District Council,31UH,Neighbourhoods & Communities,NACCS,N & C Community Safety,Event - Thurs night drop in,21/03/2012,1232818,"2,593.69",Connexions Leicester Shire,A010358,"3,112.43",518.74
North West Leicestershire District Council,31UH,Planning & Development,EPP,Environment Planning Policy,Support fathers and working families,29/02/2012,1229782,"7,321.34",Scott Christian Ltd,A039083,,
North West Leicestershire District Council,31UH,Street Management,ESS,Environment - Street Scene,Pay & Display Machines,29/02/2012,1230608,"3,550.13",Metric Group Ltd (Sales),A028996,,
North West Leicestershire District Council,31UH,Housing,HRAOPS,HRA Older Persons Service,Alarms - older persons system repairs and maintenance,29/02/2012,1231081,772.00,Tunstall Healthcare (UK) Limited,A001701,,
North West Leicestershire District Council,31UH,Leisure Centres,HLBC,Hermitage Bar & Catering,Catering Supplies - Confectionery.,29/02/2012,1231176,799.03,Palmer Harvey Mclane Ltd,A001264,,
North West Leicestershire District Council,31UH,Street Management,ENOT,Environment Transport,Fuel ,07/03/2012,1231450,"1,394.78",Pace Petroleum Ltd,A034942,,
North West Leicestershire District Council,31UH,Housing,HRAOPS,HRA Older Persons Service,Rent payments,29/02/2012,1231183,608.68,Leicestershire County Council,A000950,,
North West Leicestershire District Council,31UH,Street Management,ENOGT,Environment General Technician,Sewage Pump Equipment - Service & Maintenance ,07/03/2012,1231370,511.00,ITT Water & Wastewater UK Limited,A036382,,
North West Leicestershire District Council,31UH,Property Services,PROPCL,Property Commercial Lettings,lease equipment,07/03/2012,1231457,516.05,Pitney Bowes Finance Plc,A032630,,
North West Leicestershire District Council,31UH,Leisure Centres,CDCC,Castle Donington Community College,Portable accommodation,07/03/2012,1231712,509.26,Elliott Group Limited,A005413,,
North West Leicestershire District Council,31UH,Finance,FINPLA,Financial Planning,Training,07/03/2012,1231884,"23,459.00",Hinckley & Bosworth Borough Council,A000770,,
North West Leicestershire District Council,31UH,Leisure Centres,HPLC,Hood Park Leisure Centre,Air Conditioning & Refrigeration,07/03/2012,1231898,"3,061.00",Complete Cooling Services Ltd,A022180,,
North West Leicestershire District Council,31UH,Property Services,PROPCL,Property Commercial Lettings,Small civils and plant hire,29/02/2012,1231262,985.00,Cuckoo Gap Limited,A000438,,
North West Leicestershire District Council,31UH,Housing Strategy,HS,Community - Housing Strategy,Accomodation - Bed and Breakfast for Housing Strategy,29/02/2012,1231243,770.00,Pinewood Lodge,A032364,,
North West Leicestershire District Council,31UH,Property Services,PROPFM,Property Facilities Management,Security services,07/03/2012,1231188,"3,940.00",Spectra Security Limited,A002190,,
North West Leicestershire District Council,31UH,Information Technology,ICT,ICT Services,IT - Computer Equipment,07/03/2012,1231853,"2,075.02",ComputerLand UK Plc,A031430,,
North West Leicestershire District Council,31UH,Housing Strategy,HS,Community - Housing Strategy,Accomodation - Bed and Breakfast for Housing Strategy,07/03/2012,1231939,800.00,Pinewood Lodge,A032364,,
North West Leicestershire District Council,31UH,Planning & Development,EBC,Building Control,IT - Scanning equipment,15/03/2012,1231972,"4,375.00",Idox Software Ltd,A034157,,
North West Leicestershire District Council,31UH,Property Services,PROPFM,Property Facilities Management,Fire fighting equipment,07/03/2012,1230718,577.51,Chubb Fire Limted,A034159,,
North West Leicestershire District Council,31UH,Planning & Development,EDC,Environment - Development Control,Consultancy  ,21/03/2012,1232623,"7,491.74",Stansgate Planning Consultants,A013765,,
North West Leicestershire District Council,31UH,Legal & Democratic,LDCE,Civic Expenses,Sign Manufacturer,15/03/2012,1232126,632.20,G and G Signs,A001111,,
North West Leicestershire District Council,31UH,Property Services,PROPCL,Property Commercial Lettings,Mail Supplies -Franking Machine,15/03/2012,1232103,"2,448.48",Purchase Power,A008204,,
North West Leicestershire District Council,31UH,Housing Strategy,HS,Community - Housing Strategy,Accomodation - Bed and Breakfast for Housing Strategy,21/03/2012,1232521,910.00,Pinewood Lodge,A032364,,
North West Leicestershire District Council,31UH,Street Management,ENOT,Environment Transport,Vehicle Parts,21/03/2012,1232613,599.78,Sherwood Truck and Van Limited,A035120,,
North West Leicestershire District Council,31UH,Finance,FINPLA,Financial Planning,Financial Advisory Services,21/03/2012,1232717,"1,550.00",LAVAT Consulting Limited,A035908,,
North West Leicestershire District Council,31UH,Street Management,ENOP,Environment Parks,Building Services,28/03/2012,1233214,"1,975.00",T & T Construction,A001625,,
North West Leicestershire District Council,31UH,Housing Strategy,HS,Community - Housing Strategy,Accomodation - Bed and Breakfast for Housing Strategy,21/03/2012,1232524,520.00,Pinewood Lodge,A032364,,
North West Leicestershire District Council,31UH,Planning & Development,EDC,Environment - Development Control,Planning - Advice,28/03/2012,1233251,625.00,Sanham Agricultural Planning Ltd,A035463,,
North West Leicestershire District Council,31UH,Planning & Development,EDC,Environment - Development Control,Performing Artist,28/03/2012,1233311,685.65,Planning Inquiry Administration Services,A038890,,
North West Leicestershire District Council,31UH,Planning & Development,ECP,Environment Community Planning,Training,28/03/2012,1232844,"2,000.00",Delib,A039059,,
North West Leicestershire District Council,31UH,Property Services,PROPFM,Property Facilities Management,Security Systems - Fire Detection,28/03/2012,1232633,660.00,TECSERV UK LIMITED,A028261,,
North West Leicestershire District Council,31UH,Leisure Centres,HPLC,Hood Park Leisure Centre,Catalogue stocks,28/03/2012,1232893,795.00,ESPO,A000958,,
North West Leicestershire District Council,31UH,Corporate Director,HR,Human Resources,Licence,28/03/2012,1232919,550.00,Reed Business Information Ltd,A030726,,
North West Leicestershire District Council,31UH,Property Services,PROPFM,Property Facilities Management,IT - Computer networking and cabling,28/03/2012,1232926,"2,885.00",Modern Telecom Limited,A033207,,
North West Leicestershire District Council,31UH,Housing,HRAPBS,HRA Performance & Business Support,"ICT - Software, Maintenance and Licenses for IBS Housing",28/03/2012,1233022,"1,350.00",Capita Business Services Ltd,A002968,,
North West Leicestershire District Council,31UH,Finance,FINPLA,Financial Planning,IT - software services,29/02/2012,1231090,"29,919.33",Consilium Technologies,A025004,,
North West Leicestershire District Council,31UH,Street Management,ENOT,Environment Transport,Fuel ,07/03/2012,1231449,"20,456.93",Pace Petroleum Ltd,A034942,,
North West Leicestershire District Council,31UH,Communications,CS,Corporate - Customer Services,Catalogue stocks,07/03/2012,1231758,974.40,ESPO,A000958,,
North West Leicestershire District Council,31UH,Information Technology,ICT,ICT Services,Printing - Part of Danwood,29/02/2012,1231322,604.65,Danwood Finance,A036577,,
North West Leicestershire District Council,31UH,Environmental Health,EEHL,Environmental Health & Licensing,"Printing- Council Tax, NNDR and benefits",29/02/2012,1231289,"1,307.58",CFH - Total Document Management Limited,A038192,,
North West Leicestershire District Council,31UH,Street Management,ENOP,Environment Parks,Grounds Maintenance - Landscaping,07/03/2012,1231446,"2,442.00",Manor Landscapes,A035186,,
North West Leicestershire District Council,31UH,Planning & Development,EPP,Environment Planning Policy,Local Land Charges,07/03/2012,1231458,"1,618.20",Leicestershire County Council,A027423,,
North West Leicestershire District Council,31UH,Information Technology,ICT,ICT Services,IT - Equipment / Consumables,07/03/2012,1231466,"1,553.77",Insight Uk,A021505,,
North West Leicestershire District Council,31UH,Property Services,PROPFM,Property Facilities Management,Valuation Report,29/02/2012,1231245,550.00,Valuation Office Agency,A034291,,
North West Leicestershire District Council,31UH,Finance,FINPLA,Financial Planning,IT - software services,15/03/2012,1231979,"1,600.00",Consilium Technologies,A025004,,
North West Leicestershire District Council,31UH,Housing Repairs,HRAHRM,HRA Housing Repairs & Maintenance,PPE,07/03/2012,1230821,"1,169.21",Westbury Industrial Supplies Limited,A009933,,
North West Leicestershire District Council,31UH,Street Management,ESS,Environment - Street Scene,Waste Management,07/03/2012,1231455,"1,390.00",Premier Waste and Recycling,A031086,,
North West Leicestershire District Council,31UH,Street Management,ENOT,Environment Transport,Bags - Polythene bags manufacturer,07/03/2012,1231777,"1,130.00",BPI Recycled Products,A017624,,
North West Leicestershire District Council,31UH,Leisure Centres,HPLC,Hood Park Leisure Centre,Air Conditioning & Refrigeration,07/03/2012,1231897,590.00,Complete Cooling Services Ltd,A022180,,
North West Leicestershire District Council,31UH,Housing Strategy,HS,Community - Housing Strategy,Accomodation - Bed and Breakfast for Housing Strategy,07/03/2012,1231938,560.00,Pinewood Lodge,A032364,,
North West Leicestershire District Council,31UH,Corporate Director,HR,Human Resources,Charity Services - Childcare Vouchers,15/03/2012,1232128,"3,351.00",PES Limited,A035521,,
North West Leicestershire District Council,31UH,Information Technology,ICT,ICT Services,IT - Telecommunications and data services,15/03/2012,1232161,"1,824.58",Freedom Communications (UK) Ltd,A032826,,
North West Leicestershire District Council,31UH,Street Management,ENOT,Environment Transport,Building Services,15/03/2012,1232181,685.53,R Massey & Son (Woodville) Ltd,A033258,,
North West Leicestershire District Council,31UH,Housing,HRAOPS,HRA Older Persons Service,Alarms - older persons system repairs and maintenance,15/03/2012,1231267,525.40,Tunstall Healthcare (UK) Limited,A001701,,
North West Leicestershire District Council,31UH,Finance,FINPLA,Financial Planning,IT - software services,21/03/2012,1232505,"15,420.00",Civica Ltd,A021357,,
North West Leicestershire District Council,31UH,Environment Directorate,ENVDS,Environment - Directorate Support,Events and Entertainment,21/03/2012,1232736,"2,000.00",Snibston Discovery Park,A034571,,
North West Leicestershire District Council,31UH,Housing Repairs,HRAHRM,HRA Housing Repairs & Maintenance,Consultancy - Property Professional Services,21/03/2012,1232677,"5,410.40",Savills Commercial Limited,A032547,,
North West Leicestershire District Council,31UH,Housing Strategy,HS,Community - Housing Strategy,Accomodation - Bed and Breakfast for Housing Strategy,21/03/2012,1232520,800.00,Pinewood Lodge,A032364,,
North West Leicestershire District Council,31UH,Housing Strategy,HS,Community - Housing Strategy,Accomodation - Bed and Breakfast for Housing Strategy,21/03/2012,1232522,585.00,Pinewood Lodge,A032364,,
North West Leicestershire District Council,31UH,Leisure Centres,HLBC,Hermitage Bar & Catering,Brewery,21/03/2012,1232581,681.34,Scottish & Newcastle UK,A001828,,
North West Leicestershire District Council,31UH,Leisure Centres,HLC,Hermitage Leisure Centre,Furniture- Swimming Pool Seating,21/03/2012,1232595,"2,278.80",Audience Systems Limited,A033909,,
North West Leicestershire District Council,31UH,Leisure Centres,HPBC,Hood Park Bar and Catering,Catering Supplies - Confectionery.,21/03/2012,1232621,634.32,Palmer Harvey Mclane Ltd,A001264,,
North West Leicestershire District Council,31UH,Property Services,PROPCL,Property Commercial Lettings,Water Usage,21/03/2012,1232743,"1,322.78",Moira Furnace Museum Trust Ltd,A001136,,
North West Leicestershire District Council,31UH,Planning & Development,EPP,Environment Planning Policy,Charity Services - Voluntary services,28/03/2012,1232745,"2,000.00",MRC Community Action,A001208,,
North West Leicestershire District Council,31UH,Housing,HRAHM,HRA Housing Management,Contribution payment,28/03/2012,1232916,"2,050.00",LCC Castle Rock High School,A032734,,
North West Leicestershire District Council,31UH,Planning & Development,EBC,Building Control,Local Land Charges,28/03/2012,1232945,"1,736.00",Leicestershire County Council,A027423,,
North West Leicestershire District Council,31UH,Street Management,ENOT,Environment Transport,Tyre Supplier,28/03/2012,1233208,"2,546.54",Stapletons Tyre Service Ltd,A034248,,
North West Leicestershire District Council,31UH,Street Management,ENOWM,Environment Waste Management,Waste Management,28/03/2012,1233221,"1,460.00",ESE Limited,A001253,,
North West Leicestershire District Council,31UH,Housing Repairs,HRAHRM,HRA Housing Repairs & Maintenance,Builders - Building Maintenance,07/03/2012,1231670,750.00,J & S Seddon Ltd,A035827,,
North West Leicestershire District Council,31UH,Housing Repairs,HRAHRM,HRA Housing Repairs & Maintenance,Housing Maintenance - Replacement Windows and Doors,07/03/2012,1231589,"2,413.61",SBP Limited (Trading as Plastal & Permadoor),A036741,,
North West Leicestershire District Council,31UH,Housing Repairs,HRAHRM,HRA Housing Repairs & Maintenance,Housing Maintenance - Replacement Windows and Doors,07/03/2012,1231588,"2,413.61",SBP Limited (Trading as Plastal & Permadoor),A036741,,
North West Leicestershire District Council,31UH,Housing Repairs,HRAHRM,HRA Housing Repairs & Maintenance,Builders - Building Maintenance,07/03/2012,1231638,"1,210.80",J & S Seddon Ltd,A035827,,
North West Leicestershire District Council,31UH,Housing Repairs,HRAHRM,HRA Housing Repairs & Maintenance,Builders - Building Maintenance,07/03/2012,1231642,664.10,J & S Seddon Ltd,A035827,,
North West Leicestershire District Council,31UH,Housing Repairs,HRAHRM,HRA Housing Repairs & Maintenance,Builders - Building Maintenance,07/03/2012,1231643,621.70,J & S Seddon Ltd,A035827,,
North West Leicestershire District Council,31UH,Housing Repairs,HRAHRM,HRA Housing Repairs & Maintenance,Builders - Building Maintenance,07/03/2012,1231644,575.20,J & S Seddon Ltd,A035827,,
North West Leicestershire District Council,31UH,Housing Repairs,HRAHRM,HRA Housing Repairs & Maintenance,Builders - Building Maintenance,07/03/2012,1231645,593.50,J & S Seddon Ltd,A035827,,
North West Leicestershire District Council,31UH,Housing Repairs,HRAHRM,HRA Housing Repairs & Maintenance,Builders - Building Maintenance,07/03/2012,1231649,"1,135.80",J & S Seddon Ltd,A035827,,
North West Leicestershire District Council,31UH,Housing Repairs,HRAHRM,HRA Housing Repairs & Maintenance,Builders - Building Maintenance,07/03/2012,1231660,"1,135.80",J & S Seddon Ltd,A035827,,
North West Leicestershire District Council,31UH,Housing Repairs,HRAHRM,HRA Housing Repairs & Maintenance,Builders - Building Maintenance,07/03/2012,1231664,"1,135.80",J & S Seddon Ltd,A035827,,
North West Leicestershire District Council,31UH,Housing Repairs,HRAHRM,HRA Housing Repairs & Maintenance,Builders - Building Maintenance,07/03/2012,1231665,"1,178.25",J & S Seddon Ltd,A035827,,
North West Leicestershire District Council,31UH,Housing Repairs,HRAHRM,HRA Housing Repairs & Maintenance,Builders - Building Maintenance,07/03/2012,1231666,"1,107.00",J & S Seddon Ltd,A035827,,
North West Leicestershire District Council,31UH,Housing Repairs,HRAHRM,HRA Housing Repairs & Maintenance,Builders - Building Maintenance,07/03/2012,1231667,"1,140.16",J & S Seddon Ltd,A035827,,
North West Leicestershire District Council,31UH,Housing Repairs,HRAHRM,HRA Housing Repairs & Maintenance,Builders - Building Maintenance,07/03/2012,1231668,"1,107.00",J & S Seddon Ltd,A035827,,
North West Leicestershire District Council,31UH,Housing Repairs,HRAHRM,HRA Housing Repairs & Maintenance,Builders - Building Maintenance,07/03/2012,1231669,"1,135.80",J & S Seddon Ltd,A035827,,
North West Leicestershire District Council,31UH,Housing Repairs,HRAHRM,HRA Housing Repairs & Maintenance,Gas & Electricity - Boiler replacement,07/03/2012,1231516,"9,436.28",Lakers UK,A031787,,
North West Leicestershire District Council,31UH,Housing Repairs,HRAHRM,HRA Housing Repairs & Maintenance,Construction - Rewire Works,07/03/2012,1231521,593.91,Lovell Respond,A038131,,
North West Leicestershire District Council,31UH,Housing Repairs,HRAHRM,HRA Housing Repairs & Maintenance,Construction - Rewire Works,07/03/2012,1231533,688.19,Lovell Respond,A038131,,
North West Leicestershire District Council,31UH,Housing Repairs,HRAHRM,HRA Housing Repairs & Maintenance,Construction - Rewire Works,07/03/2012,1231534,663.00,Leicestershire County Council,A000950,,
North West Leicestershire District Council,31UH,Housing Repairs,HRAHRM,HRA Housing Repairs & Maintenance,Gas & Electricity - Gas installation ,07/03/2012,1231535,693.33,British Gas Trading Limited,A026237,,
North West Leicestershire District Council,31UH,Housing Repairs,HRAHRM,HRA Housing Repairs & Maintenance,Gas & Electricity - Boiler replacement,07/03/2012,1231559,636.87,Lakers UK,A031787,,
North West Leicestershire District Council,31UH,Housing Repairs,HRAHRM,HRA Housing Repairs & Maintenance,Gas & Electricity - Boiler replacement,07/03/2012,1231563,"3,489.43",Lakers UK,A031787,,
North West Leicestershire District Council,31UH,Housing Repairs,HRAHRM,HRA Housing Repairs & Maintenance,Housing Maintenance - Supply and Fit of Composite Doors and UPVC Frames,07/03/2012,1231587,620.25,I G Doors Limited,A038041,,
North West Leicestershire District Council,31UH,Housing Repairs,HRAHRM,HRA Housing Repairs & Maintenance,Fuel servicing (Hsg Maintenance),07/03/2012,1231579,583.21,Elite Sweep Service,A035675,,
North West Leicestershire District Council,31UH,Housing Repairs,HRAHRM,HRA Housing Repairs & Maintenance,Gas & Electricity - Boiler replacement,15/03/2012,1232257,"1,350.26",Lakers UK,A031787,,
North West Leicestershire District Council,31UH,Housing Repairs,HRAHRM,HRA Housing Repairs & Maintenance,Gas & Electricity - Boiler replacement,15/03/2012,1232258,"1,207.11",Lakers UK,A031787,,
North West Leicestershire District Council,31UH,Housing Repairs,HRAHRM,HRA Housing Repairs & Maintenance,Gas & Electricity - Boiler replacement,15/03/2012,1232259,"1,420.31",Lakers UK,A031787,,
North West Leicestershire District Council,31UH,Housing Repairs,HRAHRM,HRA Housing Repairs & Maintenance,Gas & Electricity - Boiler replacement,15/03/2012,1232260,"1,193.53",Lakers UK,A031787,,
North West Leicestershire District Council,31UH,Housing Repairs,HRAHRM,HRA Housing Repairs & Maintenance,Gas & Electricity - Boiler replacement,15/03/2012,1232270,"2,863.35",Lakers UK,A031787,,
North West Leicestershire District Council,31UH,Housing Repairs,HRAHRM,HRA Housing Repairs & Maintenance,Gas & Electricity - Boiler replacement,15/03/2012,1232271,"2,718.28",Lakers UK,A031787,,
North West Leicestershire District Council,31UH,Housing Repairs,HRAHRM,HRA Housing Repairs & Maintenance,Gas & Electricity - Boiler replacement,15/03/2012,1232272,"2,400.00",Lakers UK,A031787,,
North West Leicestershire District Council,31UH,Housing Repairs,HRAHRM,HRA Housing Repairs & Maintenance,Gas & Electricity - Boiler replacement,15/03/2012,1232274,"1,010.19",Lakers UK,A031787,,
North West Leicestershire District Council,31UH,Housing Repairs,HRAHRM,HRA Housing Repairs & Maintenance,Gas & Electricity - Boiler replacement,15/03/2012,1232261,"1,514.78",Lakers UK,A031787,,
North West Leicestershire District Council,31UH,Housing Repairs,HRAHRM,HRA Housing Repairs & Maintenance,Gas & Electricity - Boiler replacement,15/03/2012,1232264,"1,444.56",Lakers UK,A031787,,
North West Leicestershire District Council,31UH,Housing Repairs,HRAHRM,HRA Housing Repairs & Maintenance,Building Services - Housing - HPIP 9 - 10,15/03/2012,1232493,"7,428.10",Apollo Property Services Group Limited,A036945,,
North West Leicestershire District Council,31UH,Housing Repairs,HRAHRM,HRA Housing Repairs & Maintenance,Building Services - Housing - HPIP 9 - 10,15/03/2012,1232494,"7,428.10",Apollo Property Services Group Limited,A036945,,
North West Leicestershire District Council,31UH,Housing Repairs,HRAHRM,HRA Housing Repairs & Maintenance,Building Services - Housing - HPIP 9 - 10,15/03/2012,1232496,"4,881.39",Apollo Property Services Group Limited,A036945,,
North West Leicestershire District Council,31UH,Housing Repairs,HRAHRM,HRA Housing Repairs & Maintenance,Building Services - Housing - HPIP 9 - 10,15/03/2012,1232497,"4,118.92",Apollo Property Services Group Limited,A036945,,
North West Leicestershire District Council,31UH,Housing Repairs,HRAHRM,HRA Housing Repairs & Maintenance,Building Services - Housing - HPIP 9 - 10,15/03/2012,1232498,"4,652.40",Apollo Property Services Group Limited,A036945,,
North West Leicestershire District Council,31UH,Housing Repairs,HRAHRM,HRA Housing Repairs & Maintenance,Building - General Maintenance works - Minor framework,15/03/2012,1232250,"8,000.00",Alf Wright Construction Limited,A036239,,
North West Leicestershire District Council,31UH,Housing Repairs,HRAHRM,HRA Housing Repairs & Maintenance,Gas & Electricity - Boiler replacement,15/03/2012,1232251,"1,185.72",Lakers UK,A031787,,
North West Leicestershire District Council,31UH,Housing Repairs,HRAHRM,HRA Housing Repairs & Maintenance,Gas & Electricity - Boiler replacement,15/03/2012,1232252,702.46,Lakers UK,A031787,,
North West Leicestershire District Council,31UH,Housing Repairs,HRAHRM,HRA Housing Repairs & Maintenance,Gas & Electricity - Boiler replacement,15/03/2012,1232253,"1,707.85",Lakers UK,A031787,,
North West Leicestershire District Council,31UH,Housing Repairs,HRAHRM,HRA Housing Repairs & Maintenance,Gas & Electricity - Boiler replacement,15/03/2012,1232255,"4,615.75",Lakers UK,A031787,,
North West Leicestershire District Council,31UH,Housing Repairs,HRAHRM,HRA Housing Repairs & Maintenance,Gas & Electricity - Boiler replacement,15/03/2012,1232256,"1,893.87",Lakers UK,A031787,,
North West Leicestershire District Council,31UH,Housing Repairs,HRAHRM,HRA Housing Repairs & Maintenance,Building Services - Housing - HPIP 9 - 10,15/03/2012,1232495,"7,428.10",Apollo Property Services Group Limited,A036945,,
North West Leicestershire District Council,31UH,Housing Repairs,HRAHRM,HRA Housing Repairs & Maintenance,Gas & Electricity - Boiler replacement,15/03/2012,1232269,"2,258.10",Lakers UK,A031787,,
North West Leicestershire District Council,31UH,Housing Repairs,HRAHRM,HRA Housing Repairs & Maintenance,Gas & Electricity - Boiler replacement,15/03/2012,1232289,"1,369.70",Lakers UK,A031787,,
North West Leicestershire District Council,31UH,Housing Repairs,HRAHRM,HRA Housing Repairs & Maintenance,Gas & Electricity - Boiler replacement,15/03/2012,1232355,"1,094.40",Lakers UK,A031787,,
North West Leicestershire District Council,31UH,Housing Repairs,HRAHRM,HRA Housing Repairs & Maintenance,Gas & Electricity - Boiler replacement,15/03/2012,1232373,"1,259.29",Lakers UK,A031787,,
North West Leicestershire District Council,31UH,Housing Repairs,HRAHRM,HRA Housing Repairs & Maintenance,Gas & Electricity - Boiler replacement,15/03/2012,1232348,979.14,Lakers UK,A031787,,
North West Leicestershire District Council,31UH,Housing Repairs,HRAHRM,HRA Housing Repairs & Maintenance,Gas & Electricity - Boiler replacement,15/03/2012,1232374,"2,755.03",Lakers UK,A031787,,
North West Leicestershire District Council,31UH,Housing Repairs,HRAHRM,HRA Housing Repairs & Maintenance,Gas & Electricity - Boiler replacement,15/03/2012,1232375,"1,571.07",Lakers UK,A031787,,
North West Leicestershire District Council,31UH,Housing Repairs,HRAHRM,HRA Housing Repairs & Maintenance,Gas & Electricity - Boiler replacement,15/03/2012,1232376,576.79,Lakers UK,A031787,,
North West Leicestershire District Council,31UH,Housing Repairs,HRAHRM,HRA Housing Repairs & Maintenance,Gas & Electricity - Boiler replacement,15/03/2012,1232424,"1,046.34",Lakers UK,A031787,,
North West Leicestershire District Council,31UH,Housing Repairs,HRAHRM,HRA Housing Repairs & Maintenance,Gas & Electricity - Boiler replacement,15/03/2012,1232455,648.77,Lakers UK,A031787,,
North West Leicestershire District Council,31UH,Housing Repairs,HRAHRM,HRA Housing Repairs & Maintenance,Gas & Electricity - Boiler replacement,15/03/2012,1232457,763.31,Lakers UK,A031787,,
North West Leicestershire District Council,31UH,Housing Repairs,HRAHRM,HRA Housing Repairs & Maintenance,Gas & Electricity - Boiler replacement,15/03/2012,1232468,546.91,Lakers UK,A031787,,
North West Leicestershire District Council,31UH,Housing Repairs,HRAHRM,HRA Housing Repairs & Maintenance,Gas & Electricity - Boiler replacement,15/03/2012,1232469,"2,130.97",Lakers UK,A031787,,
North West Leicestershire District Council,31UH,Housing Repairs,HRAHRM,HRA Housing Repairs & Maintenance,Gas & Electricity - Boiler replacement,15/03/2012,1232488,"3,152.79",Lakers UK,A031787,,
North West Leicestershire District Council,31UH,Housing Repairs,HRAHRM,HRA Housing Repairs & Maintenance,Gas & Electricity - Boiler replacement,15/03/2012,1232491,740.38,Lakers UK,A031787,,
North West Leicestershire District Council,31UH,Housing Repairs,HRAHRM,HRA Housing Repairs & Maintenance,Building - General Maintenance works - Minor framework,28/03/2012,1233045,"3,790.00",Alf Wright Construction Limited,A036239,,
North West Leicestershire District Council,31UH,Housing Repairs,HRAHRM,HRA Housing Repairs & Maintenance,Lifts - supply and maintenance,28/03/2012,1233046,759.00,Morris Vermaport Limited,A001152,,
North West Leicestershire District Council,31UH,Housing Repairs,HRAHRM,HRA Housing Repairs & Maintenance,Gas & Electricity - Boiler replacement,28/03/2012,1233069,517.62,Lakers UK,A031787,,
North West Leicestershire District Council,31UH,Housing Repairs,HRAHRM,HRA Housing Repairs & Maintenance,Gas & Electricity - Boiler replacement,28/03/2012,1233070,"1,156.40",Lakers UK,A031787,,
North West Leicestershire District Council,31UH,Housing Repairs,HRAHRM,HRA Housing Repairs & Maintenance,Gas & Electricity - Boiler replacement,28/03/2012,1233076,627.51,Lakers UK,A031787,,
North West Leicestershire District Council,31UH,Housing Repairs,HRAHRM,HRA Housing Repairs & Maintenance,Building - General Maintenance works - Minor framework,28/03/2012,1233079,"3,790.00",Alf Wright Construction Limited,A036239,,
North West Leicestershire District Council,31UH,Housing Repairs,HRAHRM,HRA Housing Repairs & Maintenance,Fuel servicing (Hsg Maintenance),28/03/2012,1233097,842.52,Elite Sweep Service,A035675,,
North West Leicestershire District Council,31UH,Housing Repairs,HRAHRM,HRA Housing Repairs & Maintenance,Fuel servicing (Hsg Maintenance),28/03/2012,1233098,629.71,Elite Sweep Service,A035675,,
North West Leicestershire District Council,31UH,Housing Repairs,HRAHRM,HRA Housing Repairs & Maintenance,Gas & Electricity - Boiler replacement,28/03/2012,1233102,647.60,Lakers UK,A031787,,
North West Leicestershire District Council,31UH,Housing Repairs,HRAHRM,HRA Housing Repairs & Maintenance,Gas & Electricity - Boiler replacement,28/03/2012,1233103,"3,343.04",Lakers UK,A031787,,
North West Leicestershire District Council,31UH,Housing Repairs,HRAHRM,HRA Housing Repairs & Maintenance,Gas & Electricity - Boiler replacement,28/03/2012,1233104,"2,400.00",Lakers UK,A031787,,
North West Leicestershire District Council,31UH,Housing Repairs,HRAHRM,HRA Housing Repairs & Maintenance,Gas & Electricity - Boiler replacement,28/03/2012,1233106,"1,916.45",Lakers UK,A031787,,
North West Leicestershire District Council,31UH,Housing Repairs,HRAHRM,HRA Housing Repairs & Maintenance,Gas & Electricity - Boiler replacement,28/03/2012,1233107,"1,125.60",Lakers UK,A031787,,
North West Leicestershire District Council,31UH,Housing Repairs,HRAHRM,HRA Housing Repairs & Maintenance,Gas & Electricity - Boiler replacement,28/03/2012,1233108,"2,516.88",Lakers UK,A031787,,
North West Leicestershire District Council,31UH,Housing Repairs,HRAHRM,HRA Housing Repairs & Maintenance,Gas & Electricity - Boiler replacement,28/03/2012,1233105,"2,729.63",Lakers UK,A031787,,
